bitfinex-derivatives/quotes_SOLF0:USTF0_20260129
["timestamp","ask_amount","ask_price","bid_price","bid_amount"]
[1769667717091,3.27719258,123.27,123.22,10.88814633]
[1769667717293,5.97735563,123.26,123.22,10.88814633]
[1769667717496,5.97735563,123.25,123.22,10.88814633]
[1769667717688,3.27719258,123.27,123.22,10.88814633]
[1769667717893,5.9774186,123.26,123.22,10.88814633]
[1769667718193,5.9774186,123.25,123.22,10.88814633]
[1769667718394,3.27719258,123.27,123.22,10.88814633]
[1769667718595,5.97781354,123.26,123.22,10.88814633]
[1769667718793,5.97781354,123.25,123.22,10.88814633]
[1769667718994,3.27719258,123.27,123.22,10.88814633]
[1769667719184,5.97781849,123.26,123.22,10.88814633]
[1769667719398,5.97781849,123.25,123.22,10.88814633]
[1769667719686,3.27719258,123.27,123.22,10.88814633]
[1769667719884,5.97791249,123.26,123.22,10.88814633]
[1769667720089,5.97791249,123.25,123.22,10.88814633]
[1769667720293,3.27719258,123.27,123.22,10.88814633]
[1769667720493,5.97964011,123.26,123.22,10.88814633]
[1769667720692,5.97964011,123.25,123.22,10.88814633]
[1769667720893,3.27719258,123.27,123.22,10.88814633]
[1769667721192,5.98077956,123.26,123.22,10.88814633]
[1769667721393,5.98077956,123.25,123.22,10.88814633]
[1769667721585,3.27719258,123.27,123.22,10.88814633]
[1769667721792,5.98091146,123.26,123.22,10.88814633]
[1769667721992,5.98091146,123.25,123.22,10.88814633]
[1769667722193,3.27719258,123.27,123.22,10.88814633]
[1769667722395,5.98035354,123.26,123.22,10.88814633]
[1769667722591,5.98035354,123.25,123.22,10.88814633]
[1769667722794,3.27719258,123.27,123.22,10.88814633]
[1769667722996,5.97925779,123.26,123.22,10.88814633]
[1769667723194,5.97925779,123.25,123.22,10.88814633]
[1769667723394,3.27719258,123.27,123.22,10.88814633]
[1769667723593,5.97588036,123.26,123.22,10.88814633]
[1769667723795,5.97588036,123.25,123.22,10.88814633]
[1769667723996,3.27719258,123.27,123.22,10.88814633]
[1769667724196,5.97521167,123.26,123.22,10.88814633]
[1769667724398,5.97521167,123.25,123.22,10.88814633]
[1769667724596,3.27719258,123.27,123.22,10.88814633]
[1769667724798,5.97502147,123.26,123.22,10.88814633]
[1769667725100,5.97502147,123.25,123.22,10.88814633]
[1769667725290,3.27719258,123.27,123.22,10.88814633]
[1769667725494,5.97516965,123.26,123.22,10.88814633]
[1769667725697,5.97516965,123.25,123.22,10.88814633]
[1769667725996,3.27719258,123.27,123.22,10.88814633]
[1769667726196,5.97559094,123.26,123.22,10.88814633]
[1769667726399,5.97559094,123.25,123.22,10.88814633]
[1769667726595,3.27719258,123.27,123.22,10.88814633]
[1769667726798,5.97583652,123.26,123.22,10.88814633]
[1769667727100,5.97583652,123.25,123.22,13.42030366]
[1769667727400,3.27719258,123.27,123.22,13.42030366]
[1769667727602,5.98339392,123.26,123.22,13.42030366]
[1769667727900,5.98339392,123.25,123.22,13.42030366]
[1769667728101,3.27719258,123.27,123.22,13.42030366]
[1769667728401,5.98341452,123.26,123.22,13.42030366]
[1769667728603,5.98341452,123.25,123.22,10.88814633]
[1769667728803,3.27719258,123.27,123.22,10.88814633]
[1769667729003,5.98373866,123.26,123.22,10.88814633]
[1769667729204,5.98373866,123.25,123.22,10.88814633]
[1769667729403,3.27719258,123.27,123.22,10.88814633]
[1769667729604,5.98378431,123.26,123.22,10.88814633]
[1769667729805,3.27719258,123.27,123.22,10.88814633]
[1769667729806,5.98378431,123.25,123.22,10.88814633]
[1769667730104,3.27719258,123.27,123.22,10.88814633]
[1769667730305,5.98336952,123.26,123.22,10.88814633]
[1769667730508,5.98336952,123.25,123.22,10.88814633]
[1769667730705,3.27719258,123.27,123.22,10.88814633]
[1769667731005,5.98336954,123.26,123.22,10.88814633]
[1769667731207,5.98336954,123.25,123.22,10.88814633]
[1769667731408,3.27719258,123.27,123.22,10.88814633]
[1769667731705,5.9834148,123.26,123.22,10.88814633]
[1769667731901,5.9834148,123.25,123.22,10.88814633]
[1769667732101,3.27719258,123.27,123.22,10.88814633]
[1769667732401,5.98387866,123.26,123.22,10.88814633]
[1769667732702,5.98387866,123.25,123.22,10.88814633]
[1769667732901,3.27719258,123.27,123.22,10.88814633]
[1769667733207,5.98391326,123.26,123.22,10.88814633]
[1769667733395,5.98391326,123.25,123.22,10.88814633]
[1769667733599,3.27719258,123.27,123.22,10.88814633]
[1769667733801,5.98397211,123.26,123.22,10.88814633]
[1769667734100,3.27719258,123.27,123.22,10.88814633]
[1769667734101,5.98397211,123.25,123.22,10.88814633]
[1769667734397,3.27719258,123.27,123.22,10.88814633]
[1769667734595,5.98403851,123.26,123.22,10.88814633]
[1769667734796,3.27719258,123.27,123.22,10.88814633]
[1769667734797,5.98403851,123.25,123.22,10.88814633]
[1769667735095,3.27719258,123.27,123.22,10.88814633]
[1769667735300,5.98405761,123.26,123.22,10.88814633]
[1769667735600,5.98405761,123.25,123.22,10.88814633]
[1769667735800,3.27719258,123.27,123.22,10.88814633]
[1769667735998,5.98406354,123.26,123.22,10.88814633]
[1769667736203,5.98406354,123.25,123.22,10.88814633]
[1769667736409,3.27719258,123.27,123.22,10.88814633]
[1769667736604,5.98299072,123.26,123.22,10.88814633]
[1769667736805,5.98299072,123.25,123.22,10.88814633]
[1769667737004,3.27719258,123.27,123.22,10.88814633]
[1769667737200,5.98179236,123.26,123.22,10.88814633]
[1769667737401,5.98179236,123.25,123.22,10.88814633]
[1769667737608,3.27719258,123.27,123.22,10.88814633]
[1769667737810,5.98238376,123.26,123.22,10.88814633]
[1769667738009,5.98238376,123.25,123.22,10.88814633]
[1769667738211,3.27719258,123.27,123.22,10.88814633]
[1769667738411,5.98246347,123.26,123.22,10.88814633]
[1769667738609,5.98246347,123.25,123.22,10.88814633]
[1769667738805,3.27719258,123.27,123.22,10.88814633]
[1769667739106,5.98246347,123.26,123.22,10.88814633]
[1769667739307,5.98246347,123.25,123.22,10.88814633]
[1769667739508,3.27719258,123.27,123.22,10.88814633]
[1769667739709,5.98258976,123.26,123.22,10.88814633]
[1769667739909,5.98258976,123.25,123.22,10.88814633]
[1769667740110,3.27719258,123.27,123.22,10.88814633]
[1769667740410,5.98274955,123.26,123.22,10.88814633]
[1769667740609,5.98274955,123.25,123.22,10.88814633]
[1769667740909,3.27719258,123.27,123.22,10.88814633]
[1769667741109,5.98274565,123.26,123.22,10.88814633]
[1769667741308,5.98274565,123.25,123.22,10.88814633]
[1769667741608,3.27719258,123.27,123.22,10.88814633]
[1769667741809,5.98293939,123.26,123.22,10.88814633]
[1769667742112,5.98293939,123.25,123.22,10.88814633]
[1769667742302,3.27719258,123.27,123.22,10.88814633]
[1769667742519,5.98319862,123.26,123.22,10.88814633]
[1769667742715,5.98319862,123.25,123.22,10.88814633]
[1769667742916,3.27719258,123.27,123.22,10.88814633]
[1769667743216,5.98319862,123.26,123.22,10.88814633]
[1769667743416,5.98319862,123.25,123.22,10.88814633]
[1769667743610,3.27719258,123.27,123.22,10.88814633]
[1769667743807,5.98319514,123.26,123.22,10.88814633]
[1769667744008,5.98319514,123.25,123.22,10.88814633]
[1769667744308,3.27719258,123.27,123.22,10.88814633]
[1769667744508,5.98319174,123.26,123.22,10.88814633]
[1769667744710,5.98319174,123.25,123.22,10.88814633]
[1769667745013,3.27719258,123.27,123.22,10.88814633]
[1769667745217,5.98290593,123.26,123.22,10.88814633]
[1769667745414,3.27719258,123.27,123.22,13.42030366]
[1769667745616,5.98295286,123.26,123.22,13.42030366]
[1769667745916,3.27719258,123.27,123.22,13.42030366]
[1769667746112,5.98295286,123.26,123.22,13.42030366]
[1769667746316,3.27719258,123.27,123.22,13.42030366]
[1769667746617,5.98270299,123.26,123.22,13.42030366]
[1769667746816,7.3118,123.28,123.23,3.31780511]
[1769667747018,5.98272424,123.27,123.23,3.31780511]
[1769667747214,5.98272424,123.26,123.23,5.84996244]
[1769667747414,10.7663659,123.28,123.23,5.84996244]
[1769667747614,5.98246852,123.27,123.23,5.84996244]
[1769667747814,5.98246852,123.26,123.23,5.84996244]
[1769667748019,10.7663659,123.28,123.23,5.84996244]
[1769667748214,5.98231083,123.27,123.23,5.84996244]
[1769667748518,5.98231083,123.26,123.23,5.84996244]
[1769667748718,10.7663659,123.28,123.23,5.84996244]
[1769667748911,5.98228635,123.27,123.23,5.84996244]
[1769667749210,5.98228635,123.26,123.23,5.84996244]
[1769667749509,10.7663659,123.28,123.23,5.84996244]
[1769667749706,5.98210003,123.27,123.23,5.84996244]
[1769667749905,5.98210003,123.26,123.23,5.84996244]
[1769667750106,10.7663659,123.28,123.23,5.84996244]
[1769667750312,5.98200431,123.27,123.23,5.84996244]
[1769667750514,5.98200431,123.26,123.23,5.84996244]
[1769667750713,10.7663659,123.28,123.23,5.84996244]
[1769667750916,5.98199984,123.27,123.24,3.34920611]
[1769667751110,3.36050075,123.3,123.25,5.88136344]
[1769667751316,3.36050075,123.3,123.26,2.53215733]
[1769667753423,3.36050075,123.3,123.24,7.314]
[1769667753720,3.36050075,123.3,123.24,9.84615733]
[1769667756319,3.36050075,123.29,123.24,7.314]
[1769667758018,3.36050075,123.29,123.24,10.66320611]
[1769667759223,3.36050075,123.29,123.24,13.19536344]
[1769667759524,3.36050075,123.29,123.24,13.19438614]
[1769667759823,3.36050075,123.29,123.24,5.88038614]
[1769667768738,10.67180075,123.29,123.24,5.88038614]
[1769667775841,3.23630318,123.28,123.24,5.88038614]
[1769667776642,10.54800318,123.28,123.24,5.88038614]
[1769667780646,10.54800318,123.28,123.24,3.34920611]
[1769667784046,3.23630318,123.28,123.24,3.34920611]
[1769667784249,3.23630318,123.27,123.2,13.35657971]
[1769667784445,3.23630318,123.26,123.2,10.82539968]
[1769667785255,3.23630318,123.25,123.2,3.50949968]
[1769667789458,5.76748321,123.25,123.2,3.50949968]
[1769667789654,3.23630318,123.25,123.2,3.50949968]
[1769667790552,5.76748321,123.25,123.2,3.50949968]
[1769667791354,3.23630318,123.25,123.2,3.50949968]
[1769667793658,5.76748321,123.27,123.22,3.50949968]
[1769667793963,3.23630318,123.27,123.23,3.50949968]
[1769667796560,5.76748321,123.29,123.23,6.04067971]
[1769667796758,3.23630318,123.29,123.23,6.04067971]
[1769667797958,3.23630318,123.29,123.24,3.50949968]
[1769667798162,10.78318744,123.31,123.26,6.04067971]
[1769667798350,3.23630318,123.31,123.26,6.04067971]
[1769667798961,3.23630318,123.31,123.27,2.53118003]
[1769667799656,3.23630318,123.31,123.26,6.04067971]
[1769667799857,3.23630318,123.3,123.25,2.53118003]
[1769667800057,3.23630318,123.3,123.25,6.04067971]
[1769667801760,7.3107,123.3,123.25,6.04067971]
[1769667801956,3.23630318,123.29,123.23,6.04067971]
[1769667802864,3.23630318,123.27,123.21,6.04067971]
[1769667803762,10.54880318,123.27,123.21,6.04067971]
[1769667804861,10.54880318,123.27,123.22,2.53118003]
[1769667805152,10.54880318,123.27,123.21,6.04067971]
[1769667807062,10.54880318,123.27,123.22,5.90717139]
[1769667808866,3.23630318,123.27,123.22,5.90717139]
[1769667809269,7.3117,123.28,123.23,5.90717139]
[1769667809866,7.3117,123.28,123.24,2.53118003]
[1769667810168,10.76632691,123.28,123.23,5.90717139]
[1769667811260,18.29660101,123.3,123.25,6.0402367]
[1769667811472,3.45462691,123.3,123.25,6.0402367]
[1769667814169,3.45462691,123.3,123.25,3.50905667]
[1769667817066,5.98580694,123.3,123.23,6.0402367]
[1769667817473,5.98580694,123.3,123.24,3.50905667]
[1769667818774,13.29640694,123.3,123.24,3.50905667]
[1769667819674,13.29648957,123.3,123.24,3.50905667]
[1769667823977,10.76522691,123.3,123.25,3.50905667]
[1769667824476,3.45462691,123.3,123.26,3.50905667]
[1769667824676,3.45462691,123.31,123.26,3.50905667]
[1769667824977,10.76462691,123.31,123.26,3.50905667]
[1769667825678,10.76462691,123.31,123.26,6.04031933]
[1769667825679,3.45462691,123.31,123.26,6.04031933]
[1769667826476,3.45462691,123.31,123.26,3.50905667]
[1769667840285,9.84066266,123.32,123.26,3.50905667]
[1769667840487,10.76128719,123.33,123.27,3.47433097]
[1769667840687,3.45248719,123.33,123.28,6.00559363]
[1769667842691,3.45248719,123.33,123.28,3.47433097]
[1769667846299,3.45248719,123.33,123.29,3.47433097]
[1769667847086,3.45248719,123.33,123.24,266.52]
[1769667847087,3.45248719,123.35,123.31,3.47433097]
[1769667860508,10.76008719,123.35,123.31,3.47433097]
[1769667864402,7.3076,123.35,123.31,6.00559363]
[1769667866907,7.3076,123.35,123.31,3.47433097]
[1769667873615,10.71984188,123.36,123.31,3.47433097]
[1769667873809,10.71984188,123.36,123.31,6.00559363]
[1769667874321,3.41284188,123.36,123.31,13.31549363]
[1769667878130,3.41284188,123.36,123.32,3.23015928]
[1769667882330,10.71984188,123.36,123.32,3.23015928]
[1769667882527,2.52812684,123.38,123.29,3.23015928]
[1769667882528,3.22488662,123.33,123.29,3.23015928]
[1769667885326,5.75301346,123.31,123.27,3.23015928]
[1769667885723,2.52812684,123.3,123.27,3.23015928]
[1769667887230,2.52812684,123.3,123.25,7.3135]
[1769667887430,2.52812684,123.3,123.25,10.54365928]
[1769667887731,2.52812684,123.3,123.26,3.23015928]
[1769667888927,5.75301346,123.31,123.26,3.23015928]
[1769667889232,13.06251346,123.32,123.26,3.23015928]
[1769667893434,2.52812684,123.31,123.26,3.23015928]
[1769667893732,13.06251346,123.32,123.26,3.23015928]
[1769667894239,2.52812684,123.31,123.26,3.23015928]
[1769667898345,2.52812684,123.31,123.26,10.54305928]
[1769667900648,2.52812684,123.31,123.27,10.73622985]
[1769667900847,5.75301346,123.32,123.27,10.73622985]
[1769667902452,3.22488662,123.32,123.27,10.73622985]
[1769667905051,3.22488662,123.32,123.26,2.52812684]
[1769667905052,2.52812684,123.33,123.28,10.73552985]
[1769667905250,3.25290055,123.34,123.28,3.42392985]
[1769667905754,3.25290055,123.34,123.29,3.42392985]
[1769667906449,3.25290055,123.34,123.29,10.73492985]
[1769667909560,10.56120055,123.34,123.29,3.42392985]
[1769667929491,3.25290055,123.34,123.29,3.42392985]
[1769667929688,3.25290055,123.34,123.29,5.95205669]
[1769667931595,3.25290055,123.34,123.29,3.42392985]
[1769667935696,3.25290055,123.34,123.29,5.95205669]
[1769667943200,3.28926818,123.33,123.27,3.29308084]
[1769667943402,3.28926818,123.33,123.28,5.82120768]
[1769667943701,3.28926818,123.33,123.28,5.82239428]
[1769667951714,3.28926818,123.33,123.28,13.13389428]
[1769667959913,3.33655665,123.32,123.26,13.09051498]
[1769667960214,3.33655665,123.32,123.26,10.56120154]
[1769667960609,3.33655665,123.31,123.25,316.27813076]
[1769667960810,3.33655665,123.31,123.25,3.24870154]
[1769667962419,10.64665665,123.31,123.25,10.56210154]
[1769667963216,13.17597009,123.31,123.25,10.56210154]
[1769667963516,3.33655665,123.3,123.25,10.56210154]
[1769667966418,3.33655665,123.3,123.25,3.24870154]
[1769667968026,3.33655665,123.3,123.23,3.24870154]
[1769667968027,3.33655665,123.29,123.23,3.24870154]
[1769667969320,10.64785665,123.29,123.23,3.24870154]
[1769667971126,3.33655665,123.28,123.23,3.24870154]
[1769667974332,3.33655665,123.28,123.23,5.77801498]
[1769667976933,7.3113,123.29,123.24,5.77801498]
[1769667977329,10.64785665,123.29,123.24,5.77801498]
[1769667978938,10.64785665,123.29,123.24,3.24870154]
[1769667979631,10.64785665,123.29,123.22,9.84411344]
[1769667979632,3.33655665,123.27,123.22,3.24870154]
[1769667980737,3.33655665,123.27,123.22,5.77801498]
[1769667987647,3.38070513,123.26,123.22,3.24870154]
[1769667990447,10.58389059,123.27,123.22,5.77801498]
[1769667998954,3.27149059,123.27,123.23,5.91232544]
[1769667999157,10.58319059,123.29,123.25,2.52931344]
[1769668002863,3.27149059,123.29,123.25,2.52931344]
[1769668003064,3.27149059,123.29,123.26,2.52931344]
[1769668003563,3.27149059,123.29,123.25,2.52931344]
[1769668005566,3.27149059,123.29,123.25,2.53084172]
[1769668008566,10.58209059,123.3,123.25,5.91385372]
[1769668008771,10.58209059,123.3,123.26,2.53084172]
[1769668009667,10.58209059,123.3,123.25,5.91385372]
[1769668011768,10.58209059,123.3,123.26,2.53084172]
[1769668020986,10.58209059,123.3,123.27,2.53084172]
[1769668023784,18.41054322,123.32,123.28,2.53084172]
[1769668023993,10.88006292,123.32,123.28,2.53084172]
[1769668025787,10.88006292,123.32,123.27,6.04670027]
[1769668027884,3.57016292,123.31,123.27,6.04670027]
[1769668031290,7.3099,123.32,123.28,6.04670027]
[1769668032589,10.88006292,123.32,123.28,6.04670027]
[1769668034087,10.88006292,123.32,123.28,3.51585855]
[1769668035392,3.57016292,123.34,123.28,6.04670027]
[1769668035580,3.57016292,123.34,123.3,6.04670027]
[1769668035780,3.57016292,123.36,123.31,2.53084172]
[1769668035984,3.57016292,123.36,123.32,2.53084172]
[1769668037192,10.87716292,123.36,123.31,2.53084172]
[1769668038395,3.57016292,123.35,123.31,2.53084172]
[1769668054109,3.57016292,123.35,123.31,6.06383913]
[1769668054305,7.307,123.36,123.31,6.06383913]
[1769668054704,10.80389536,123.36,123.31,6.06383913]
[1769668057708,7.307,123.36,123.32,6.06383913]
[1769668058810,7.307,123.36,123.32,3.53299741]
[1769668059806,7.307,123.36,123.32,6.06383913]
[1769668060400,7.307,123.36,123.32,3.53299741]
[1769668067618,10.80389536,123.36,123.32,3.53299741]
[1769668067912,7.3076,123.35,123.3,6.06093336]
[1769668068213,7.3076,123.35,123.31,3.53299741]
[1769668068716,3.49689536,123.36,123.31,3.53299741]
[1769668069720,3.49689536,123.36,123.31,6.06093336]
[1769668071716,3.49689536,123.36,123.32,3.53299741]
[1769668079813,10.0586744,123.38,123.32,6.06093336]
[1769668079814,3.51304874,123.38,123.32,6.06093336]
[1769668080622,3.51304874,123.38,123.33,3.26601086]
[1769668081720,3.51304874,123.38,123.33,10.57471086]
[1769668081923,3.51304874,123.38,123.33,13.10264681]
[1769668085521,3.51304874,123.38,123.33,10.57471086]
[1769668085729,3.51304874,123.38,123.33,3.26601086]
[1769668086228,3.51304874,123.38,123.32,3.26601086]
[1769668088828,10.81894874,123.38,123.32,3.26601086]
[1769668089230,10.81894874,123.38,123.33,3.26601086]
[1769668093233,3.51304874,123.4,123.35,5.79394681]
[1769668094339,10.81764874,123.4,123.35,5.79394681]
[1769668095428,10.81764874,123.4,123.35,3.26601086]
[1769668097943,3.51304874,123.4,123.35,3.26601086]
[1769668098338,13.57172314,123.42,123.35,3.26601086]
[1769668098543,7.3041,123.41,123.35,3.26601086]
[1769668099139,3.51304874,123.42,123.37,3.26601086]
[1769668100042,3.51304874,123.46,123.4,5.79394681]
[1769668100232,3.51304874,123.45,123.4,3.26601086]
[1769668100433,113.5668,123.47,123.38,3.26601086]
[1769668100434,3.51304874,123.43,123.38,3.26601086]
[1769668102144,3.51304874,123.48,123.42,3.26601086]
[1769668102342,3.51304874,123.48,123.42,5.79394681]
[1769668102842,3.51304874,123.48,123.44,2.52793595]
[1769668103243,10.81304874,123.48,123.44,2.52793595]
[1769668104746,3.51304874,123.47,123.42,3.26601086]
[1769668105052,3.51304874,123.47,123.41,2.52793595]
[1769668105344,3.51304874,123.47,123.42,5.88226441]
[1769668107237,3.51304874,123.47,123.42,3.35432846]
[1769668112652,10.81364874,123.47,123.42,3.35432846]
[1769668112852,3.35702857,123.46,123.4,6.00506295]
[1769668113049,3.35702857,123.46,123.4,3.477127]
[1769668114344,7.3018,123.45,123.4,3.477127]
[1769668114855,10.65882857,123.45,123.4,3.477127]
[1769668115457,13.18676452,123.45,123.4,3.477127]
[1769668115654,3.35702857,123.44,123.39,3.477127]
[1769668120954,3.35702857,123.43,123.37,10.783427]
[1769668121254,3.35702857,123.43,123.38,3.477127]
[1769668122363,5.88496452,123.43,123.38,3.477127]
[1769668124164,5.88496452,123.42,123.36,10.784127]
[1769668124363,5.88496452,123.41,123.36,3.477127]
[1769668125364,5.88496452,123.43,123.36,3.477127]
[1769668126466,5.88496452,123.43,123.36,10.784127]
[1769668127366,5.88496452,123.43,123.36,13.31206295]
[1769668127566,5.88309797,123.43,123.36,13.3101964]
[1769668128465,13.18599797,123.43,123.36,13.3101964]
[1769668128862,13.18599797,123.43,123.37,3.477127]
[1769668129466,3.35702857,123.42,123.37,3.477127]
[1769668136675,7.3029,123.43,123.37,3.477127]
[1769668136879,10.65069757,123.43,123.37,3.477127]
[1769668142873,3.34779757,123.45,123.39,3.26235617]
[1769668144476,3.34779757,123.44,123.39,3.26235617]
[1769668145179,3.34779757,123.43,123.39,3.26235617]
[1769668148382,10.65069757,123.43,123.39,3.26235617]
[1769668153388,10.65069757,123.43,123.37,5.78842557]
[1769668153691,10.65069757,123.43,123.37,13.09482557]
[1769668154093,10.65069757,123.43,123.38,2.5260694]
[1769668154795,10.65069757,123.43,123.37,13.09482557]
[1769668157194,10.65069757,123.43,123.37,10.56875617]
[1769668158590,10.65069757,123.43,123.38,3.26235617]
[1769668171302,10.65069757,123.43,123.38,5.78842557]
[1769668174405,3.34779757,123.43,123.38,13.09402557]
[1769668174599,10.74922381,123.45,123.39,3.53859104]
[1769668174799,3.44722381,123.45,123.41,2.5260694]
[1769668176609,3.44722381,123.45,123.41,6.06466044]
[1769668177210,7.3012,123.46,123.41,6.06466044]
[1769668177712,10.74842381,123.46,123.41,6.06466044]
[1769668180814,10.74842381,123.46,123.41,3.53859104]
[1769668184720,3.44722381,123.45,123.41,3.53859104]
[1769668194729,7.5649793,123.47,123.41,3.53859104]
[1769668194930,3.44722381,123.48,123.44,6.06309746]
[1769668197535,3.44722381,123.48,123.44,3.53859104]
[1769668197734,3.44722381,123.48,123.44,6.06309746]
[1769668198336,3.2907813,123.5,123.45,2.52450642]
[1769668199338,10.5895813,123.5,123.45,2.52450642]
[1769668199537,10.5895813,123.5,123.45,5.93916112]
[1769668200427,10.5895813,123.5,123.45,3.4146547]
[1769668205535,10.5895813,123.5,123.45,5.93916112]
[1769668208743,10.5895813,123.5,123.45,3.4146547]
[1769668209736,3.2907813,123.5,123.45,5.93916112]
[1769668209940,3.2907813,123.52,123.46,5.93916112]
[1769668210732,3.2907813,123.52,123.46,3.4146547]
[1769668211450,10.5889813,123.51,123.46,3.4146547]
[1769668211939,7.2975,123.52,123.47,3.4146547]
[1769668212642,7.2975,123.52,123.47,5.93916112]
[1769668213147,3.2907813,123.53,123.48,5.93916112]
[1769668227857,3.2907813,123.53,123.48,3.4146547]
[1769668228051,3.2907813,123.53,123.45,7.3012]
[1769668228052,3.37005704,123.52,123.46,5.87847794]
[1769668228246,5.89456346,123.52,123.46,3.35397152]
[1769668228546,3.37005704,123.51,123.46,3.35397152]
[1769668230856,10.66825704,123.51,123.46,3.35397152]
[1769668232058,7.2988,123.5,123.46,3.35397152]
[1769668232355,13.08310007,123.5,123.43,2.52450642]
[1769668232561,13.08310007,123.5,123.42,305.28]
[1769668232856,13.08310007,123.5,123.43,2.52450642]
[1769668233459,13.08310007,123.5,123.43,9.82730642]
[1769668234260,13.08310007,123.5,123.44,3.37898531]
[1769668234465,10.55919365,123.49,123.44,3.37898531]
[1769668235165,3.25979365,123.49,123.44,3.37898531]
[1769668235860,3.25979365,123.49,123.44,5.90349173]
[1769668238659,10.55849365,123.5,123.45,3.37898531]
[1769668239563,3.25979365,123.54,123.48,5.90349173]
[1769668239963,3.25979365,123.54,123.49,3.37898531]
[1769668240171,10.55609365,123.54,123.49,3.37898531]
[1769668240856,10.55609365,123.54,123.49,5.90349173]
[1769668245762,10.55549365,123.56,123.51,2.52450642]
[1769668246263,10.55549365,123.56,123.5,3.37898531]
[1769668246461,10.55549365,123.56,123.5,5.90349173]
[1769668247072,10.55549365,123.56,123.52,2.52450642]
[1769668247073,3.25979365,123.56,123.52,2.52450642]
[1769668247365,3.25979365,123.56,123.51,5.90349173]
[1769668248371,3.25979365,123.56,123.51,13.20139173]
[1769668249661,3.25979365,123.56,123.51,13.19674227]
[1769668249866,3.25979365,123.55,123.51,3.37898531]
[1769668256371,10.55559365,123.55,123.51,3.37898531]
[1769668260375,10.5649036,123.54,123.49,3.41561115]
[1769668260677,10.5649036,123.54,123.49,5.93546811]
[1769668260868,10.5649036,123.54,123.49,3.41561115]
[1769668266276,3.2685036,123.56,123.5,3.41561115]
[1769668266476,3.2685036,123.56,123.51,3.41561115]
[1769668267386,3.2685036,123.55,123.5,2.51985696]
[1769668267582,3.2685036,123.55,123.49,13.23476811]
[1769668268285,10.5644036,123.55,123.49,13.23476811]
[1769668268778,3.2685036,123.54,123.49,13.23476811]
[1769668268986,3.2685036,123.54,123.49,10.71491115]
[1769668269684,3.2685036,123.54,123.5,3.41561115]
[1769668269888,3.2685036,123.54,123.5,5.93546811]
[1769668270782,10.5637036,123.56,123.51,2.51985696]
[1769668270984,10.5627036,123.58,123.52,5.93546811]
[1769668271184,3.2685036,123.57,123.52,5.93546811]
[1769668272082,10.5631036,123.57,123.52,5.93546811]
[1769668272278,3.2685036,123.57,123.52,5.93546811]
[1769668272486,3.2685036,123.57,123.54,2.51985696]
[1769668272677,3.2685036,123.57,123.53,5.93546811]
[1769668272986,3.2685036,123.59,123.54,2.51985696]
[1769668273389,3.2685036,123.58,123.53,5.93546811]
[1769668276888,3.2685036,123.58,123.49,113.5422]
[1769668276889,7.2928,123.61,123.56,5.93546811]
[1769668277097,7.2928,123.61,123.57,2.51985696]
[1769668277289,10.5613036,123.61,123.57,2.51985696]
[1769668278590,3.2685036,123.61,123.57,2.51985696]
[1769668288098,3.2685036,123.61,123.56,13.23056811]
[1769668289592,3.2685036,123.61,123.56,5.93546811]
[1769668299593,7.2917,123.62,123.58,3.21735985]
[1769668299799,3.53781332,123.64,123.58,5.73721681]
[1769668301204,3.53781332,123.64,123.58,3.21735985]
[1769668301406,10.82891332,123.63,123.58,3.21735985]
[1769668303301,10.82831332,123.64,123.59,3.21735985]
[1769668303505,10.82831332,123.64,123.59,5.73721681]
[1769668303707,10.82831332,123.64,123.59,3.21735985]
[1769668312517,10.82831332,123.64,123.59,5.73432376]
[1769668313807,3.53781332,123.63,123.59,5.73432376]
[1769668314309,3.53781332,123.63,123.59,3.21735985]
[1769668316110,10.82901332,123.63,123.59,3.21735985]
[1769668317708,7.2912,123.63,123.59,3.21735985]
[1769668322727,3.33302258,123.61,123.57,3.43557757]
[1769668324424,5.84998649,123.63,123.57,3.43557757]
[1769668325322,3.33302258,123.62,123.57,3.43557757]
[1769668332332,3.33302258,123.62,123.56,7.2951]
[1769668332533,3.33302258,123.62,123.56,10.73067757]
[1769668332727,3.33302258,123.61,123.56,3.43557757]
[1769668333630,10.62442258,123.63,123.57,3.43557757]
[1769668333931,10.62442258,123.63,123.57,5.95254148]
[1769668334120,3.33302258,123.62,123.57,3.43557757]
[1769668353743,3.50455906,123.6,123.54,7.2958]
[1769668353945,3.50455906,123.59,123.54,10.5734066]
[1769668356248,6.02152297,123.59,123.54,10.5734066]
[1769668357749,3.50455906,123.59,123.55,3.2776066]
[1769668362056,3.50455906,123.59,123.54,7.2958]
[1769668362247,3.50455906,123.59,123.54,10.5734066]
[1769668364455,3.50455906,123.59,123.54,5.79457051]
[1769668364849,3.50455906,123.59,123.54,3.2776066]
[1769668366455,3.50455906,123.59,123.54,5.79457051]
[1769668368461,3.50455906,123.59,123.54,3.2776066]
[1769668375562,7.2922,123.61,123.56,3.55777958]
[1769668375967,7.2922,123.61,123.56,6.07680293]
[1769668376168,10.74310795,123.61,123.56,6.07680293]
[1769668383082,3.45090795,123.6,123.56,2.51902335]
[1769668384676,3.45090795,123.6,123.55,2.51902335]
[1769668385876,3.45090795,123.6,123.55,6.07680293]
[1769668387672,3.45090795,123.59,123.55,6.07680293]
[1769668392680,3.45090795,123.58,123.53,3.55777958]